bitfinex-derivatives/quotes_BTCF0:USTF0_20241104
["timestamp","ask_amount","ask_price","bid_price","bid_amount"]
[1730761756124,0.3858,67947.0,67946.0,0.073628]
[1730761756325,0.3718,67947.0,67946.0,0.073628]
[1730761757123,0.445427,67947.0,67946.0,0.073628]
[1730761757422,0.445427,67947.0,67946.0,0.074628]
[1730761757423,0.459427,67947.0,67946.0,0.074628]
[1730761757622,0.3858,67947.0,67946.0,0.074628]
[1730761757813,0.3748,67947.0,67946.0,0.074628]
[1730761758719,0.026,67947.0,67946.0,0.075628]
[1730761758923,0.3608,67966.0,67946.0,0.075628]
[1730761758924,0.02295494,67964.0,67946.0,0.94578263]
[1730761759126,0.0318,67972.0,67964.0,0.073608]
[1730761759328,0.073605,67968.0,67964.0,0.073608]
[1730761759626,0.36172,67971.0,67958.0,0.3608]
[1730761759927,0.3608,67971.0,67965.0,0.073607]
[1730761760112,0.3608,67971.0,67969.0,0.073602]
[1730761760926,0.3608,67971.0,67964.0,0.3944]
[1730761761125,0.073607,67965.0,67964.0,0.3608]
[1730761762112,0.073607,67965.0,67964.0,0.3618]
[1730761763526,0.073607,67965.0,67964.0,0.001]
[1730761763731,0.074607,67965.0,67964.0,0.001]
[1730761764034,0.074607,67965.0,67961.0,0.073611]
[1730761765126,0.074607,67965.0,67952.0,0.38019239]
[1730761765324,0.074607,67965.0,67962.0,0.07361]
[1730761765628,0.073607,67965.0,67962.0,0.07361]
[1730761768628,0.073606,67966.0,67963.0,0.073609]
[1730761770227,0.075606,67966.0,67963.0,0.073609]
[1730761771529,0.073608,67964.0,67952.0,0.3608]
[1730761771735,0.073608,67964.0,67958.0,0.073615]
[1730761771932,0.073608,67964.0,67960.0,0.073612]
[1730761772430,0.002,67966.0,67952.0,0.3608]
[1730761772937,0.002,67964.0,67962.0,0.07361]
[1730761774231,0.002,67964.0,67963.0,0.073609]
[1730761776043,0.073614,67959.0,67958.0,0.3608]
[1730761776336,0.21507663,67959.0,67958.0,0.3608]
[1730761777331,0.21607663,67959.0,67958.0,0.3608]
[1730761779748,0.001,67959.0,67958.0,0.434415]
[1730761780538,0.074614,67959.0,67958.0,0.3608]
[1730761781539,0.001,67959.0,67952.0,0.01940122]
[1730761781745,0.001,67959.0,67954.0,0.073619]
[1730761782049,0.073618,67955.0,67954.0,0.073619]
[1730761782841,0.073618,67955.0,67954.0,0.075619]
[1730761783646,0.073618,67955.0,67954.0,0.073619]
[1730761784040,0.073627,67948.0,67947.0,0.073627]
[1730761785533,0.073627,67948.0,67947.0,0.080627]
[1730761785940,0.073627,67948.0,67947.0,0.007]
[1730761786143,0.14146263,67951.0,67947.0,0.003]
[1730761786338,0.073626,67948.0,67947.0,0.003]
[1730761787236,0.073626,67948.0,67947.0,0.005]
[1730761787841,0.073626,67948.0,67947.0,0.001]
[1730761788032,0.073626,67948.0,67947.0,0.003]
[1730761788942,0.073623,67950.0,67947.0,0.005]
[1730761789138,0.073626,67948.0,67947.0,0.005]
[1730761789944,0.073626,67948.0,67947.0,0.003]
[1730761790244,0.073626,67948.0,67947.0,0.005]
[1730761790547,0.073626,67948.0,67947.0,0.004]
[1730761791750,0.073628,67946.0,67945.0,0.073628]
[1730761793348,0.3608,67949.0,67941.0,0.01988492]
[1730761793654,0.073632,67943.0,67942.0,0.073632]
[1730761795941,0.073632,67943.0,67942.0,0.075632]
[1730761796443,0.073632,67943.0,67942.0,0.073632]
[1730761796643,0.073632,67943.0,67942.0,0.075632]
[1730761796942,0.073632,67943.0,67942.0,0.002]
[1730761797143,0.434432,67943.0,67942.0,0.002]
[1730761797351,0.434432,67943.0,67942.0,0.005]
[1730761798046,0.434432,67943.0,67942.0,0.002]
[1730761798252,0.3608,67943.0,67927.0,0.0645]
[1730761798449,0.21510163,67937.0,67936.0,0.073638]
[1730761799762,0.21510163,67937.0,67936.0,0.076638]
[1730761800052,0.21510163,67937.0,67936.0,0.003]
[1730761800554,0.21510163,67937.0,67936.0,0.006]
[1730761800954,0.21510163,67937.0,67936.0,0.079639]
[1730761801445,0.21510163,67937.0,67936.0,0.077639]
[1730761801948,0.21510163,67937.0,67936.0,0.004]
[1730761802654,0.073642,67933.0,67932.0,0.00220774]
[1730761802846,0.073642,67933.0,67914.0,0.0331]
[1730761802847,0.073658,67918.0,67917.0,0.073658]
[1730761803247,0.073658,67918.0,67914.0,0.02010279]
[1730761803248,0.14146263,67917.0,67914.0,0.02010279]
[1730761803453,0.14146263,67917.0,67910.0,0.073667]
[1730761803653,0.14146263,67917.0,67906.0,1.57447]
[1730761803654,0.07367,67908.0,67906.0,1.57447]
[1730761803872,0.07367,67908.0,67907.0,0.11742963]
[1730761804049,0.07367,67908.0,67907.0,0.07367]
[1730761804751,0.0315,67917.0,67910.0,0.073667]
[1730761804752,0.17296263,67917.0,67910.0,0.073667]
[1730761805058,0.3608,67918.0,67906.0,1.5]
[1730761805059,0.3608,67918.0,67917.0,0.073659]
[1730761805453,0.14146263,67928.0,67917.0,0.80252]
[1730761805753,0.14146263,67928.0,67922.0,0.073654]
[1730761805754,0.073652,67924.0,67922.0,0.073654]
[1730761805952,0.073652,67924.0,67923.0,0.106553]
[1730761806353,0.073652,67924.0,67923.0,0.0329]
[1730761806556,0.21511463,67924.0,67923.0,0.0329]
[1730761806950,0.14146263,67924.0,67923.0,0.0329]
[1730761807152,0.14146263,67924.0,67923.0,0.106553]
[1730761808047,0.21511463,67924.0,67923.0,0.0329]
[1730761808253,0.21611463,67924.0,67923.0,0.0329]
[1730761808456,0.21611463,67924.0,67923.0,0.0369]
[1730761808760,0.21511463,67924.0,67923.0,0.0399]
[1730761809752,0.21511463,67924.0,67923.0,0.0319]
[1730761810365,0.073652,67924.0,67923.0,0.0319]
[1730761812268,0.21511463,67924.0,67923.0,0.0319]
[1730761813154,0.3608,67931.0,67923.0,0.0319]
[1730761813456,0.073646,67929.0,67927.0,0.073648]
[1730761814661,0.3608,67931.0,67923.0,0.0359]
[1730761814953,0.001,67929.0,67924.0,0.073651]
[1730761815158,0.001,67929.0,67923.0,0.0249]
[1730761815362,0.073651,67925.0,67919.0,0.01945339]
[1730761815564,0.073651,67925.0,67918.0,0.105157]
[1730761815565,0.073654,67923.0,67922.0,0.073654]
[1730761817063,0.073654,67923.0,67921.0,0.3608]
[1730761817064,0.073652,67924.0,67923.0,0.005]
[1730761817568,0.073652,67924.0,67923.0,0.078653]
[1730761818271,0.14146263,67926.0,67924.0,0.073651]
[1730761818458,0.21511263,67926.0,67924.0,0.073651]
[1730761819063,0.14146263,67926.0,67925.0,0.073651]
[1730761820065,0.073643,67932.0,67931.0,0.073644]
[1730761822467,0.074643,67932.0,67931.0,0.073644]
[1730761823270,0.073652,67924.0,67923.0,0.04375963]
[1730761823471,0.3608,67924.0,67915.0,0.04384183]
[1730761823670,0.07366,67918.0,67917.0,0.073659]
[1730761825068,0.07366,67918.0,67917.0,0.065659]
[1730761825268,0.07366,67916.0,67915.0,0.013]
[1730761825478,0.0317,67917.0,67913.0,0.0008]
[1730761825667,0.21512563,67914.0,67913.0,0.073664]
[1730761826568,0.21512563,67914.0,67913.0,0.11750583]
[1730761827178,0.21512563,67914.0,67908.0,0.04384183]
[1730761827377,0.14146263,67908.0,67906.0,0.04384183]
[1730761827568,0.073671,67906.0,67905.0,0.073672]
[1730761827972,0.14146263,67908.0,67904.0,0.04384183]
[1730761828277,0.14146263,67908.0,67903.0,0.36300862]
[1730761828278,0.073673,67904.0,67903.0,0.50050686]
[1730761829069,0.21513163,67908.0,67907.0,0.07367]
[1730761831177,0.21513163,67908.0,67907.0,0.08167]
[1730761831579,0.0317,67917.0,67914.0,0.073662]
[1730761831779,0.073662,67915.0,67914.0,0.073662]
[1730761831964,0.0317,67917.0,67912.0,0.04391591]
[1730761832170,0.0317,67917.0,67916.0,0.07366]
[1730761832585,0.00088,67924.0,67923.0,0.073653]
[1730761832767,0.3608,67932.0,67916.0,0.48563591]
[1730761832768,0.435443,67932.0,67928.0,0.073647]
[1730761832965,0.434443,67932.0,67928.0,0.073647]
[1730761833375,0.07585518,67929.0,67928.0,0.073647]
[1730761833976,0.07585518,67929.0,67926.0,0.073649]
[1730761834369,0.07585518,67929.0,67923.0,0.0622]
[1730761834667,0.07585518,67929.0,67927.0,0.073648]
[1730761834872,0.07785518,67929.0,67928.0,0.074647]
[1730761835178,0.08085518,67929.0,67928.0,0.075647]
[1730761835578,0.08085518,67929.0,67928.0,0.073647]
[1730761836174,0.08085518,67929.0,67928.0,0.074647]
[1730761836974,0.08085518,67929.0,67928.0,0.001]
[1730761837776,0.08085518,67929.0,67928.0,0.002]
[1730761838883,0.08085518,67929.0,67928.0,0.075647]
[1730761840478,0.08085518,67929.0,67928.0,0.067647]
[1730761840671,0.07365,67926.0,67924.0,0.073651]
[1730761840866,0.07365,67926.0,67918.0,0.38039112]
[1730761840867,0.07365,67926.0,67925.0,0.073651]
[1730761841776,0.00220918,67929.0,67928.0,0.073647]
[1730761842167,0.07585518,67929.0,67928.0,0.073647]
[1730761843588,0.00220918,67929.0,67928.0,0.073647]
[1730761843969,0.07585518,67929.0,67928.0,0.073647]
[1730761844172,0.07365,67926.0,67924.0,0.434452]
[1730761844373,0.073651,67925.0,67924.0,0.073652]
[1730761845378,0.073651,67925.0,67924.0,0.077652]
[1730761845881,0.073651,67925.0,67924.0,0.080652]
[1730761846878,0.073651,67925.0,67924.0,0.076652]
[1730761847079,0.073651,67925.0,67924.0,0.080652]
[1730761851291,0.073651,67925.0,67924.0,0.076652]
[1730761851488,0.00220918,67929.0,67924.0,0.004]
[1730761851689,0.00220918,67929.0,67928.0,0.073647]
[1730761851993,0.073633,67942.0,67927.0,0.14146263]
[1730761852291,0.073633,67942.0,67933.0,0.3608]
[1730761852586,0.073633,67942.0,67934.0,0.032]
[1730761852787,0.073633,67942.0,67941.0,0.073633]
[1730761852992,0.14146263,67950.0,67934.0,0.032]
[1730761853289,0.00220852,67951.0,67950.0,0.073623]
[1730761853589,0.3608,67955.0,67954.0,0.073619]
[1730761854293,0.073615,67959.0,67957.0,0.073616]
[1730761855491,0.073616,67957.0,67954.0,0.001]
[1730761856492,0.3608,67961.0,67960.0,0.073613]
[1730761856792,0.17386263,67974.0,67955.0,0.14146263]
[1730761856984,0.073605,67967.0,67963.0,0.073609]
[1730761857186,0.073609,67964.0,67959.0,0.073613]
[1730761857384,0.073609,67964.0,67951.0,0.3608]
[1730761857586,0.14146263,67968.0,67951.0,0.3608]
[1730761857801,0.003,67961.0,67960.0,0.001]
[1730761858290,0.07361,67963.0,67955.0,0.001]
[1730761858490,0.07361,67963.0,67960.0,0.073613]
[1730761858795,0.07361,67963.0,67959.0,0.001]
[1730761858796,0.073613,67960.0,67959.0,0.001]
[1730761858992,0.073613,67960.0,67955.0,0.001]
[1730761858993,0.073613,67960.0,67957.0,0.073616]
[1730761859190,0.073614,67959.0,67957.0,0.073616]
[1730761859695,0.073615,67958.0,67955.0,0.073617]
[1730761859900,0.073615,67958.0,67956.0,0.073616]
[1730761860689,0.003,67961.0,67960.0,0.073613]
[1730761861091,0.073605,67967.0,67965.0,0.073607]
[1730761861589,0.073606,67966.0,67965.0,0.073607]
[1730761861782,0.001,67961.0,67960.0,0.074612]
[1730761862292,0.001,67967.0,67966.0,0.073605]
[1730761863192,0.001,67967.0,67965.0,0.001]
[1730761863193,0.073606,67966.0,67965.0,0.001]
[1730761863593,0.073606,67966.0,67965.0,0.002]
[1730761864395,0.073609,67964.0,67961.0,0.073611]
[1730761864603,0.073609,67964.0,67960.0,0.001]
[1730761864604,0.073609,67964.0,67963.0,0.073609]
[1730761864893,0.14146263,67967.0,67966.0,0.073606]
[1730761865098,0.21506763,67967.0,67966.0,0.073606]
[1730761865287,0.073606,67966.0,67965.0,0.001]
[1730761865797,0.073606,67967.0,67966.0,0.073606]
[1730761866390,0.434403,67970.0,67965.0,0.001]
[1730761866591,0.434403,67970.0,67969.0,0.073603]
[1730761867291,0.073604,67968.0,67965.0,0.073607]
[1730761867491,0.3638,67970.0,67966.0,0.001]
[1730761867688,0.14146263,67966.0,67965.0,0.001]
[1730761867896,0.073622,67951.0,67950.0,0.00220724]
[1730761868199,0.434419,67954.0,67950.0,0.00220724]
[1730761868396,0.434419,67954.0,67953.0,0.07362]
[1730761868397,0.073619,67954.0,67953.0,0.07362]
[1730761868894,0.073621,67953.0,67951.0,0.073622]
[1730761869090,0.073621,67953.0,67952.0,0.073621]
[1730761870295,0.073617,67956.0,67954.0,0.073618]
[1730761870499,0.073617,67956.0,67954.0,0.073619]
[1730761870707,0.073617,67956.0,67955.0,0.073618]
[1730761871296,0.36168,67960.0,67950.0,0.00220724]
[1730761871492,0.14146263,67962.0,67960.0,0.073612]
[1730761871692,0.00092,67967.0,67961.0,0.073611]
[1730761871904,0.0315,67968.0,67951.0,0.033]
[1730761872201,0.0034,67979.0,67975.0,0.073596]
[1730761872417,0.073593,67978.0,67966.0,0.14146263]
[1730761872597,0.0309,67980.0,67978.0,0.073593]
[1730761872801,0.00220777,67981.0,67978.0,0.073593]
[1730761873315,0.07579777,67981.0,67978.0,0.073593]
[1730761873511,0.00220777,67981.0,67971.0,0.3608]
[1730761873699,0.00220777,67981.0,67973.0,0.14146263]
[1730761873899,0.00220777,67981.0,67980.0,0.073591]
[1730761874406,0.003,67981.0,67980.0,0.073591]
[1730761874596,0.004,67981.0,67980.0,0.073591]
[1730761874796,0.073592,67979.0,67978.0,0.001]
[1730761875810,0.004,67981.0,67978.0,0.001]
[1730761876310,0.07759,67981.0,67980.0,0.001]
[1730761876513,0.07759,67981.0,67980.0,0.002]
[1730761877007,0.07759,67981.0,67980.0,0.001]
[1730761877208,0.073592,67980.0,67978.0,0.002]
[1730761877619,0.073592,67979.0,67978.0,0.002]
[1730761877912,0.073592,67979.0,67977.0,0.073594]
[1730761879512,0.073592,67979.0,67978.0,0.001]
[1730761879810,0.073592,67979.0,67978.0,0.002]
[1730761880195,0.073592,67979.0,67977.0,0.075594]
[1730761880196,0.077592,67979.0,67977.0,0.075594]
[1730761880709,0.004,67979.0,67977.0,0.001]
[1730761880913,0.073593,67978.0,67977.0,0.001]
[1730761881110,0.073593,67978.0,67975.0,0.073596]
[1730761881407,0.14146263,67978.0,67970.0,0.01986308]
[1730761881612,0.073599,67973.0,67971.0,0.0736]
[1730761882403,0.3658,67979.0,67968.0,0.3608]
[1730761882404,0.14146263,67971.0,67968.0,0.3608]
[1730761882704,0.14146263,67971.0,67962.0,0.3608]
[1730761882705,0.073608,67964.0,67962.0,0.07361]
[1730761883402,0.39458,67970.0,67959.0,0.073614]
[1730761883611,0.073613,67960.0,67959.0,0.073614]
[1730761884110,0.073614,67959.0,67955.0,0.09338407]
[1730761884328,0.073614,67959.0,67953.0,0.0329]
[1730761884329,0.073618,67957.0,67956.0,0.073617]
[1730761884640,0.14146263,67960.0,67951.0,0.3608]
[1730761884641,0.073621,67952.0,67951.0,0.3608]
[1730761885234,0.14146263,67953.0,67950.0,0.00220724]
[1730761885545,0.14146263,67953.0,67927.0,0.3608]
[1730761885546,0.073622,67951.0,67932.0,0.04389091]
[1730761885840,0.073643,67933.0,67932.0,0.073642]
[1730761886144,0.073645,67930.0,67929.0,0.073646]
[1730761886636,0.073641,67935.0,67931.0,0.073644]
[1730761886929,0.073641,67935.0,67932.0,0.073643]
[1730761887234,0.073641,67934.0,67932.0,0.073643]
[1730761887620,0.14146263,67938.0,67932.0,0.073643]
[1730761887621,0.073642,67933.0,67932.0,0.073643]
[1730761888424,0.073639,67937.0,67934.0,0.07364]
[1730761888926,0.073639,67936.0,67934.0,0.07364]
[1730761889320,0.3608,67940.0,67929.0,0.018]
[1730761889321,0.073636,67939.0,67929.0,0.091646]
[1730761889524,0.073641,67934.0,67929.0,0.091646]
[1730761889933,0.073641,67934.0,67929.0,0.082646]
[1730761890140,0.0034,67953.0,67934.0,0.002]
[1730761890329,0.3642,67961.0,67949.0,0.14146263]
[1730761890534,0.50226263,67961.0,67952.0,0.073621]
[1730761890834,0.073617,67956.0,67953.0,1.5]
[1730761891012,0.073618,67956.0,67953.0,1.5]
[1730761891213,0.073618,67956.0,67950.0,0.073623]
[1730761892012,0.073618,67956.0,67951.0,0.073622]
[1730761892412,0.3608,67961.0,67948.0,0.3608]
[1730761892628,0.3608,67961.0,67949.0,0.073625]
[1730761893220,0.3608,67961.0,67948.0,0.3608]
[1730761893412,0.073618,67955.0,67951.0,0.073622]
[1730761894318,0.2121662,67957.0,67942.0,1.86168]
[1730761894520,0.2121662,67957.0,67935.0,0.11254]
[1730761894521,0.073627,67947.0,67941.0,0.04991535]
[1730761894711,0.2121662,67951.0,67945.0,0.073628]
[1730761894917,0.073628,67946.0,67945.0,0.073628]
[1730761895612,0.3608,67955.0,67945.0,0.073628]
[1730761895613,0.3618,67955.0,67945.0,0.3608]
[1730761895806,0.3618,67955.0,67954.0,0.073619]
[1730761896027,0.3608,67955.0,67954.0,0.073619]
[1730761897225,0.434412,67961.0,67955.0,0.073618]
[1730761897422,0.434412,67961.0,67945.0,0.444429]
[1730761897717,0.434412,67961.0,67958.0,0.073614]
[1730761897910,0.434412,67961.0,67945.0,0.3708]
[1730761897911,0.434412,67961.0,67952.0,0.3608]
[1730761898111,0.434412,67961.0,67953.0,0.0324]
[1730761898310,0.434412,67961.0,67956.0,0.073616]
[1730761898521,0.073612,67961.0,67957.0,0.073616]
[1730761898820,0.104307,67965.0,67962.0,0.07361]
[1730761899026,0.104307,67965.0,67963.0,0.073609]
[1730761899915,0.073608,67964.0,67963.0,0.073609]
[1730761900509,0.0327,67965.0,67953.0,0.0324]
[1730761900707,0.073618,67956.0,67953.0,0.10602]
[1730761900908,0.073619,67954.0,67953.0,0.07362]
[1730761902221,0.07362,67953.0,67952.0,0.3608]
[1730761902418,0.07362,67953.0,67952.0,0.434421]
[1730761903734,0.07362,67953.0,67952.0,0.442421]
[1730761904411,0.07362,67953.0,67952.0,0.444421]
[1730761905117,0.00088,67965.0,67964.0,0.073608]
[1730761905426,0.07580897,67971.0,67970.0,0.073602]
[1730761906125,0.00220797,67971.0,67970.0,0.073602]
[1730761906519,0.073604,67968.0,67967.0,0.073605]
[1730761906725,0.36300797,67971.0,67963.0,0.434409]
[1730761906726,0.073607,67966.0,67963.0,0.434409]
[1730761906920,0.073607,67966.0,67964.0,0.073608]
[1730761907225,0.073607,67966.0,67965.0,0.073607]
[1730761907628,0.073607,67966.0,67959.0,0.0302]
[1730761907629,0.07361,67964.0,67963.0,0.073609]
[1730761909030,0.07361,67964.0,67959.0,0.0302]
[1730761909031,0.001,67966.0,67959.0,0.0302]
[1730761909226,0.001,67966.0,67954.0,0.0328]
[1730761909427,0.073611,67962.0,67954.0,0.0328]
[1730761909738,0.073611,67962.0,67961.0,0.073612]
[1730761911132,0.073607,67965.0,67964.0,0.073608]
[1730761912717,0.075607,67965.0,67964.0,0.073608]
[1730761913322,0.076607,67965.0,67964.0,0.073608]
[1730761916726,0.076607,67965.0,67954.0,0.0328]
[1730761916727,0.073619,67955.0,67954.0,0.073619]
[1730761917129,0.07362,67953.0,67952.0,0.434421]
[1730761917632,0.07362,67953.0,67952.0,0.426421]
[1730761920136,0.07362,67953.0,67952.0,0.086621]
[1730761920637,0.07362,67953.0,67952.0,0.084621]
[1730761920831,0.0309,67957.0,67956.0,0.073617]
[1730761921028,0.07362,67954.0,67953.0,0.07362]
[1730761921942,0.07362,67953.0,67952.0,0.008]
[1730761922238,0.07362,67953.0,67952.0,0.007]
[1730761922739,0.07362,67953.0,67952.0,0.004]
[1730761923126,0.07362,67953.0,67950.0,0.105223]
[1730761923327,0.07362,67953.0,67952.0,0.003]
[1730761924943,0.07362,67953.0,67952.0,0.007]
[1730761925642,0.104517,67957.0,67953.0,0.07362]
[1730761925844,0.0309,67957.0,67952.0,0.007]
[1730761926141,0.073619,67955.0,67954.0,0.073619]
[1730761926934,0.07362,67953.0,67952.0,0.007]
[1730761928339,0.07362,67953.0,67952.0,0.003]
[1730761928942,0.07362,67953.0,67951.0,0.073622]
[1730761929144,0.07362,67953.0,67952.0,0.004]
[1730761929645,0.53527622,67953.0,67952.0,0.007]
[1730761929829,0.073634,67940.0,67939.0,0.00220757]
[1730761931646,0.073634,67940.0,67939.0,0.01220757]
[1730761932140,0.074634,67940.0,67939.0,0.02220757]
[1730761932942,0.074634,67940.0,67939.0,0.09584257]
[1730761933245,0.074634,67940.0,67939.0,0.08784257]
[1730761934142,0.001,67940.0,67939.0,0.08784257]
[1730761935040,0.001,67940.0,67939.0,0.44864257]
[1730761935247,0.073624,67950.0,67939.0,1.03163545]
[1730761935546,0.073624,67950.0,67948.0,0.073626]
[1730761935744,0.073624,67950.0,67942.0,0.04380728]
[1730761935745,0.07362,67954.0,67953.0,0.07362]
[1730761935945,0.073622,67952.0,67949.0,1.638924]
[1730761936251,0.073623,67951.0,67949.0,1.638924]
[1730761936851,0.073623,67951.0,67949.0,0.138924]
[1730761937346,0.434418,67955.0,67953.0,0.07362]
[1730761937756,0.073619,67954.0,67953.0,0.07362]
[1730761938748,0.073622,67952.0,67949.0,0.0653]
[1730761939045,0.073623,67951.0,67949.0,0.0653]
[1730761939251,0.073623,67951.0,67949.0,0.138925]
[1730761940947,0.073623,67951.0,67949.0,0.15892001]
[1730761941344,0.434418,67955.0,67952.0,0.073621]
[1730761941744,0.3608,67955.0,67952.0,0.073621]
[1730761941948,0.073619,67954.0,67952.0,0.073621]
[1730761942451,0.073619,67954.0,67949.0,0.08529501]
[1730761942452,0.073619,67954.0,67953.0,0.07362]
[1730761943651,0.3638,67955.0,67954.0,0.073619]
[1730761943854,0.002,67955.0,67954.0,0.073619]
[1730761944046,0.002,67955.0,67954.0,0.515099]
[1730761944246,0.073611,67962.0,67960.0,0.073612]
[1730761945752,0.14343288,67962.0,67952.0,0.3608]
[1730761945939,0.07362,67953.0,67952.0,0.3608]
[1730761946847,0.07362,67953.0,67952.0,0.434421]
[1730761947253,0.0332,67955.0,67953.0,0.07362]
[1730761948355,0.0332,67955.0,67953.0,0.06562]
[1730761948547,0.0332,67955.0,67952.0,0.3668]
[1730761948761,0.07362,67953.0,67952.0,0.3668]
[1730761949658,0.07362,67953.0,67952.0,0.3608]
[1730761950555,0.07362,67953.0,67952.0,0.3648]
[1730761950957,0.07362,67953.0,67952.0,0.3698]
[1730761951253,0.0332,67955.0,67954.0,0.073619]
[1730761951459,0.3608,67957.0,67956.0,0.073617]
[1730761951857,0.073612,67961.0,67958.0,0.073614]
[1730761952055,0.073612,67961.0,67953.0,0.04380728]
[1730761952750,0.3608,67963.0,67953.0,0.11742628]
[1730761952751,0.14143288,67956.0,67953.0,0.11742628]
[1730761952947,0.073619,67955.0,67954.0,0.073619]
[1730761954145,0.001,67957.0,67956.0,0.073617]
[1730761954748,0.073611,67962.0,67953.0,0.003]
[1730761954948,0.073611,67962.0,67959.0,0.073613]
[1730761955345,0.073612,67961.0,67959.0,0.073613]
[1730761956548,0.008,67962.0,67961.0,0.073612]
[1730761956751,0.00220797,67971.0,67970.0,0.073602]
[1730761956948,0.00220797,67971.0,67966.0,0.434405]
[1730761956949,0.14143288,67970.0,67966.0,0.434405]
[1730761957760,0.073604,67969.0,67966.0,0.434405]
[1730761958551,0.073604,67969.0,67966.0,0.3608]
[1730761958855,0.14643288,67970.0,67966.0,0.3618]
[1730761959059,0.073605,67967.0,67966.0,0.001]
[1730761959360,0.14643288,67970.0,67965.0,0.073607]
[1730761959361,0.073606,67966.0,67965.0,0.073607]
[1730761961647,0.21503888,67966.0,67965.0,0.073607]
[1730761961858,0.21703888,67966.0,67965.0,0.073607]
[1730761963259,0.14343288,67966.0,67960.0,0.3608]
[1730761963454,0.14343288,67966.0,67948.0,0.10351325]
[1730761963455,0.073617,67957.0,67956.0,0.073616]
[1730761964655,0.073617,67957.0,67956.0,0.11948478]
[1730761965061,0.073617,67957.0,67956.0,0.075616]
[1730761965565,0.073612,67961.0,67960.0,0.073612]
[1730761966867,0.073613,67960.0,67959.0,0.04387548]
[1730761967071,0.073614,67959.0,67958.0,0.04387548]
[1730761967266,0.073614,67959.0,67956.0,0.075617]
[1730761967659,0.073614,67959.0,67958.0,0.04387668]
[1730761968260,0.073614,67959.0,67957.0,0.073616]
[1730761969170,0.3608,67964.0,67957.0,0.073616]
[1730761969466,0.073615,67958.0,67957.0,0.073616]
[1730761969771,0.073615,67958.0,67957.0,0.074616]
[1730761970667,0.073615,67958.0,67957.0,0.075616]
[1730761971170,0.073615,67958.0,67957.0,0.074616]
[1730761971371,0.073615,67958.0,67957.0,0.075616]
[1730761971967,0.073615,67958.0,67957.0,0.074616]
[1730761972265,0.073615,67958.0,67957.0,0.075616]
[1730761972768,0.073611,67962.0,67959.0,0.073613]
[1730761972976,0.3608,67964.0,67957.0,0.14343288]
[1730761973278,0.073614,67959.0,67958.0,0.073614]
[1730761973573,0.073614,67959.0,67958.0,1.573614]
[1730761973768,0.07361,67963.0,67961.0,0.073611]
[1730761973970,0.07461,67962.0,67961.0,0.073611]
[1730761974370,0.07361,67962.0,67961.0,0.073611]
[1730761975063,0.07561,67962.0,67961.0,0.073611]
[1730761976272,0.07761,67962.0,67961.0,0.073611]
[1730761977278,0.07761,67962.0,67961.0,0.09299343]
[1730761978570,0.073613,67960.0,67959.0,0.04387397]
[1730761979185,0.073613,67960.0,67956.0,0.073616]
[1730761979367,0.073616,67957.0,67956.0,0.073616]
[1730761980181,0.073616,67957.0,67955.0,0.05864315]
[1730761980182,0.073617,67956.0,67955.0,0.05864315]
[1730761980372,0.073617,67956.0,67951.0,0.00220716]
[1730761980373,0.073621,67952.0,67951.0,0.00220716]
[1730761980570,0.12372,67952.0,67943.0,0.08766989]
[1730761980879,0.073636,67939.0,67932.0,0.0069]
[1730761981076,0.073645,67930.0,67929.0,0.033]
[1730761981385,0.073651,67925.0,67924.0,0.0313]
[1730761981673,0.14143288,67929.0,67922.0,0.073653]
[1730761981674,0.073653,67923.0,67922.0,0.073653]
[1730761982670,0.14143288,67929.0,67917.0,1.89386]
[1730761982986,0.073643,67932.0,67917.0,1.50076]
[1730761982987,0.073657,67919.0,67917.0,1.50076]
[1730761983283,0.073657,67919.0,67918.0,0.02187424]
[1730761983478,0.073657,67919.0,67918.0,0.00220824]
[1730761983780,0.073657,67919.0,67918.0,0.07586624]
[1730761984279,0.074657,67919.0,67918.0,0.08586624]
[1730761984478,0.074657,67919.0,67918.0,0.09586624]
[1730761986687,0.074657,67919.0,67918.0,0.02220824]
[1730761987677,0.074657,67919.0,67918.0,0.09586624]
[1730761988285,0.001,67919.0,67918.0,0.09586624]
[1730761988482,0.001,67919.0,67918.0,0.12666624]
[1730761991677,0.07365,67926.0,67923.0,0.073652]
[1730761991980,0.3608,67928.0,67918.0,0.05300824]
[1730761991981,0.073652,67924.0,67918.0,0.05300824]
[1730761992187,0.073652,67924.0,67921.0,0.073654]
[1730761992387,0.073652,67924.0,67922.0,0.073653]
[1730761992880,0.073652,67924.0,67923.0,0.005]
[1730761993282,0.073652,67924.0,67923.0,0.01]
[1730761993484,0.073652,67924.0,67923.0,0.005]
[1730761993788,0.073652,67924.0,67922.0,0.073653]
[1730761993789,0.073652,67924.0,67922.0,0.079653]
[1730761993979,0.073652,67924.0,67922.0,0.085653]
[1730761994386,0.073652,67924.0,67922.0,0.079653]
[1730761994582,0.073652,67924.0,67923.0,0.078653]
[1730761995587,0.073652,67924.0,67923.0,0.083653]
[1730761996693,0.073652,67924.0,67923.0,0.078653]
[1730761997285,0.073652,67924.0,67923.0,0.083653]
[1730762000700,0.073652,67924.0,67923.0,0.01]
[1730762000993,0.21508488,67924.0,67923.0,0.01]
[1730762003692,0.21508488,67924.0,67923.0,0.083653]
[1730762003890,0.073652,67924.0,67923.0,0.083653]
[1730762006593,0.073652,67924.0,67923.0,0.01]
[1730762008096,0.073652,67924.0,67923.0,0.083653]
[1730762010002,0.073652,67924.0,67923.0,0.075653]
[1730762010805,0.073652,67924.0,67923.0,0.078653]